bitfinex-derivatives/quotes_SOLF0:USTF0_20250830
["timestamp","ask_amount","ask_price","bid_price","bid_amount"]
[1756592323190,74.78,201.03,201.02,4.03827292]
[1756592332499,67.22,201.03,201.02,4.03827292]
[1756592332700,74.78,201.03,201.02,4.03827292]
[1756592335295,76.34901433,201.03,201.02,4.03827292]
[1756592335600,76.34901433,201.03,200.96,4.13370561]
[1756592335800,7.56,200.99,200.97,3.98993553]
[1756592336100,7.56,200.99,200.98,3.98993553]
[1756592346902,10.01168265,200.99,200.98,3.98993553]
[1756592347099,10.01168265,200.99,200.92,4.13370561]
[1756592347499,10.01168265,200.99,200.93,4.13370561]
[1756592348110,10.01168265,200.99,200.92,4.13370561]
[1756592349809,10.01168265,200.99,200.91,4.13370561]
[1756592351413,2.45168265,200.96,200.91,4.13370561]
[1756592351613,7.61,200.95,200.9,5.21370561]
[1756592351807,2.45168265,200.93,200.89,4.13370561]
[1756592352110,7.61,200.92,200.89,4.13370561]
[1756592352312,7.61,200.92,200.88,4.13370561]
[1756592352509,7.61,200.92,200.88,9.18370561]
[1756592354611,2.45168265,200.93,200.88,5.05]
[1756592354917,7.61,200.92,200.88,5.05]
[1756592355109,7.61,200.92,200.86,4.13370561]
[1756592355303,7.61,200.89,200.83,4.13370561]
[1756592355508,7.61,200.89,200.82,9.18370561]
[1756592356010,7.61,200.86,200.82,5.05]
[1756592356214,2.45168265,200.87,200.82,5.05]
[1756592356711,7.61,200.86,200.82,5.05]
[1756592357511,7.61,200.86,200.79,4.13370561]
[1756592357813,7.61,200.86,200.78,9.18370561]
[1756592358015,2.45168265,200.84,200.78,9.18370561]
[1756592358213,2.45168265,200.84,200.78,5.05]
[1756592362318,7.61,200.83,200.78,5.05]
[1756592362618,2.45168265,200.84,200.78,5.05]
[1756592362810,7.61,200.83,200.78,5.05]
[1756592363519,2.45168265,200.81,200.73,5.06]
[1756592370920,7.61,200.85,200.74,5.06]
[1756592379426,9.5915943,200.83,200.77,5.06]
[1756592380128,8.02,200.83,200.77,5.06]
[1756592380328,9.5915943,200.83,200.77,5.06]
[1756592385219,8.02,200.87,200.82,1.5715943]
[1756592385528,1.5715943,200.88,200.82,1.5715943]
[1756592385931,8.02,200.87,200.82,1.5715943]
[1756592386130,1.5715943,200.88,200.82,1.5715943]
[1756592386325,8.02,200.87,200.82,1.5715943]
[1756592386525,1.5715943,200.88,200.82,1.5715943]
[1756592386830,8.02,200.87,200.82,1.5715943]
[1756592387530,8.02,200.87,200.81,5.06]
[1756592394945,8.02,200.98,200.83,5.06]
[1756592395145,8.02,200.93,200.83,5.06]
[1756592395345,8.02,200.93,200.84,5.06]
[1756592397145,8.02,200.93,200.86,5.06]
[1756592397747,8.02,200.93,200.86,9.20319167]
[1756592398145,8.02,200.93,200.88,2.45432545]
[1756592398451,2.45432545,201.0,200.89,5.06]
[1756592398452,40.26,200.99,200.89,5.06]
[1756592399050,8.02,200.99,200.92,5.06]
[1756592399252,8.02,201.06,200.97,2.45432545]
[1756592399455,8.02,201.06,200.98,5.06]
[1756592400358,8.02,201.06,200.98,9.20319167]
[1756592400657,8.02,201.06,200.97,4.14319167]
[1756592401357,8.02,201.06,200.96,4.14319167]
[1756592402160,8.02,201.06,200.95,11.65751712]
[1756592402351,2.45432545,201.07,200.95,11.65751712]
[1756592402562,8.02,201.06,200.96,9.20319167]
[1756592402953,8.02,201.06,200.96,5.06]
[1756592404259,8.02,201.06,200.99,5.06]
[1756592405554,8.02,201.06,201.01,2.45432545]
[1756592405757,8.02,201.1,201.02,5.06]
[1756592414568,8.02,201.1,201.02,7.51432545]
[1756592414763,8.02,201.1,201.02,2.45432545]
[1756592414964,8.02,201.1,201.03,5.04]
[1756592430371,7.46,201.07,200.95,98.576225]
[1756592430576,2.45432545,201.05,200.95,98.576225]
[1756592430777,7.46,201.04,200.95,98.576225]
[1756592431081,2.45432545,201.05,200.95,98.576225]
[1756592431980,7.46,201.04,200.95,98.576225]
[1756592432181,2.45432545,201.05,200.95,98.576225]
[1756592432677,7.46,201.04,200.95,98.576225]
[1756592432876,2.45432545,201.05,200.95,98.576225]
[1756592433070,7.46,201.04,200.95,98.576225]
[1756592433277,17.35432545,201.05,200.95,98.576225]
[1756592433876,7.46,201.04,200.95,98.576225]
[1756592434080,7.46,201.03,200.95,98.576225]
[1756592438185,7.46,201.03,200.96,5.05]
[1756592440287,7.46,201.03,200.96,9.18059798]
[1756592442290,7.46,201.03,200.97,4.13059798]
[1756592442789,25.42432545,201.05,200.99,5.05]
[1756592443190,25.42432545,201.05,200.99,9.18059798]
[1756592443790,22.97,201.05,200.99,9.18059798]
[1756592444685,22.97,201.05,200.99,4.13059798]
[1756592444893,2.45432545,201.03,200.99,4.13059798]
[1756592445385,2.45432545,201.03,200.98,4.13059798]
[1756592445591,8.07,201.02,200.98,4.13059798]
[1756592445792,2.45432545,201.03,200.98,4.13059798]
[1756592447193,8.07,201.02,200.98,4.13059798]
[1756592447392,2.45432545,201.03,200.98,4.13059798]
[1756592447789,8.07,201.02,200.98,4.13059798]
[1756592448193,2.45432545,201.03,200.97,4.13059798]
[1756592448496,10.52432545,201.03,200.97,4.13059798]
[1756592454297,10.52432545,201.03,200.96,9.18059798]
[1756592458094,10.52432545,201.03,200.97,4.13059798]
[1756592459399,9.63868421,201.01,200.97,9.18059798]
[1756592459697,8.07,201.0,200.97,9.18059798]
[1756592459897,8.07,201.0,200.97,5.05]
[1756592460295,8.07,201.0,200.96,4.13059798]
[1756592460495,8.07,201.0,200.97,5.05]
[1756592460890,8.07,201.0,200.96,4.13059798]
[1756592461090,8.07,201.0,200.97,5.05]
[1756592462902,1.56868421,201.01,200.97,5.05]
[1756592463402,8.07,201.0,200.97,5.05]
[1756592465704,1.56868421,201.01,200.97,5.05]
[1756592465902,8.07,201.0,200.97,5.05]
[1756592466104,8.07,201.0,200.97,9.18059798]
[1756592466299,1.56868421,200.99,200.95,4.13059798]
[1756592466502,14.9,201.05,200.92,4.13059798]
[1756592466503,1.56868421,200.97,200.92,4.13059798]
[1756592466801,1.56868421,200.97,200.93,5.05]
[1756592467202,8.07,200.96,200.93,5.05]
[1756592467402,8.07,200.96,200.93,9.18059798]
[1756592467603,8.07,200.96,200.93,5.05]
[1756592468404,7.35,201.09,200.96,5.05]
[1756592468607,7.35,201.12,201.05,5.05]
[1756592468807,1.56868421,201.12,201.07,5.05]
[1756592469006,1.56868421,201.14,201.08,1.56868421]
[1756592469308,7.35,201.15,201.07,5.05]
[1756592472513,7.35,201.15,201.07,9.21166108]
[1756592472907,7.35,201.15,201.07,5.05]
[1756592475210,7.35,201.15,201.07,7.49792344]
[1756592480425,7.35,201.15,201.07,5.05]
[1756592481519,7.35,201.1,201.03,5.04]
[1756592484831,2.44792344,201.09,201.0,108.42031035]
[1756592485029,7.35,201.08,201.0,108.42031035]
[1756592489731,2.44792344,201.09,201.0,108.42031035]
[1756592489922,7.35,201.05,200.97,9.18948745]
[1756592490126,9.79792344,201.03,200.97,5.04]
[1756592490338,9.79792344,201.03,200.94,9.18948745]
[1756592492630,7.35,200.99,200.93,4.14948745]
[1756592492834,7.35,200.99,200.93,9.18948745]
[1756592493234,7.35,200.99,200.93,5.04]
[1756592498529,39.95,200.99,200.91,4.14948745]
[1756592498736,2.44792344,200.94,200.88,4.14948745]
[1756592498931,2.44792344,200.94,200.88,5.05]
[1756592499133,10.31792344,200.94,200.88,5.05]
[1756592500036,10.31792344,200.94,200.85,4.14948745]
[1756592500238,10.31792344,200.91,200.84,5.05]
[1756592505139,0.03382435,200.9,200.84,5.05]
[1756592508539,7.87,200.89,200.84,5.05]
[1756592508732,7.87,200.87,200.84,5.05]
[1756592512839,0.03382435,200.9,200.81,2.44792344]
[1756592513043,0.03382435,200.9,200.82,5.05]
[1756592513245,10.31792344,200.92,200.82,5.05]
[1756592516245,2.44792344,201.0,200.82,5.05]
[1756592516246,7.87,200.99,200.82,5.05]
[1756592516445,10.31792344,200.94,200.84,2.44792344]
[1756592516646,10.31792344,200.94,200.85,5.05]
[1756592526156,2.44792344,200.88,200.82,9.19948745]
[1756592526356,7.87,200.87,200.8,4.14948745]
[1756592526551,2.44792344,200.85,200.79,9.19948745]
[1756592526747,7.87,200.84,200.79,9.19948745]
[1756592526950,2.44792344,200.85,200.79,5.05]
[1756592527151,2.44792344,200.85,200.79,9.19948745]
[1756592527950,7.79,200.84,200.79,9.19948745]
[1756592528147,2.44792344,200.85,200.79,9.19948745]
[1756592528352,7.79,200.84,200.79,9.19948745]
[1756592528750,2.44792344,200.85,200.79,5.05]
[1756592528950,7.79,200.84,200.79,5.05]
[1756592529254,2.44792344,200.85,200.79,5.05]
[1756592529449,7.79,200.84,200.79,5.05]
[1756592529755,2.44792344,200.85,200.79,5.05]
[1756592530255,7.79,200.84,200.78,97.84773659]
[1756592532256,2.44792344,200.85,200.79,4.14948745]
[1756592532551,7.79,200.84,200.79,4.14948745]
[1756592532758,2.44792344,200.85,200.78,97.84773659]
[1756592532957,7.79,200.84,200.78,97.84773659]
[1756592533558,2.44792344,200.85,200.78,97.84773659]
[1756592534060,7.79,200.84,200.78,97.84773659]
[1756592535152,7.79,200.84,200.79,4.14948745]
[1756592535352,2.44792344,200.85,200.79,4.14948745]
[1756592536060,7.79,200.84,200.79,4.14948745]
[1756592536754,2.44792344,200.82,200.77,4.14948745]
[1756592536956,2.44792344,200.79,200.75,4.14948745]
[1756592537158,2.44792344,200.79,200.74,4.14948745]
[1756592537353,7.79,200.78,200.74,4.14948745]
[1756592537659,2.44792344,200.79,200.74,4.14948745]
[1756592538055,7.79,200.78,200.74,9.19948745]
[1756592540657,7.79,200.78,200.74,4.14948745]
[1756592540859,7.79,200.78,200.75,5.05]
[1756592543051,2.44792344,200.79,200.75,5.05]
[1756592543256,7.79,200.78,200.75,5.05]
[1756592543453,7.79,200.83,200.75,5.06]
[1756592543758,334.56,200.93,200.79,5.06]
[1756592543759,7.79,200.87,200.79,5.06]
[1756592543960,7.79,200.87,200.79,9.20948745]
[1756592545265,7.79,200.87,200.79,5.06]
[1756592545665,7.79,200.87,200.79,4.14948745]
[1756592545867,7.79,200.87,200.81,4.14948745]
[1756592546066,7.79,200.87,200.82,5.06]
[1756592546366,130.67,200.9,200.81,4.14948745]
[1756592546561,7.79,200.87,200.79,9.20948745]
[1756592548270,7.79,200.87,200.79,5.06]
[1756592552577,7.79,200.84,200.77,4.14948745]
[1756592552981,7.79,200.84,200.77,9.20948745]
[1756592553985,7.79,200.81,200.76,4.14948745]
[1756592554183,38.90792344,200.82,200.76,4.14948745]
[1756592554380,7.79,200.81,200.76,4.14948745]
[1756592554585,38.90792344,200.82,200.76,4.14948745]
[1756592554986,7.79,200.81,200.76,4.14948745]
[1756592555185,38.90792344,200.82,200.76,4.14948745]
[1756592555877,7.79,200.81,200.76,4.14948745]
[1756592556283,46.69792344,200.82,200.76,4.14948745]
[1756592556587,10.23792344,200.82,200.77,5.06]
[1756592556788,10.23792344,200.82,200.76,4.14948745]
[1756592557084,10.23792344,200.82,200.76,9.20948745]
[1756592562286,10.23792344,200.82,200.78,5.06]
[1756592563289,7.53,200.81,200.78,5.06]
[1756592567292,7.53,200.81,200.78,9.20948745]
[1756592569400,7.53,200.81,200.79,4.14948745]
[1756592572192,2.44792344,200.9,200.79,4.14948745]
[1756592572393,9.97792344,200.87,200.81,9.20948745]
[1756592574302,9.97792344,200.87,200.81,9.23473213]
[1756592579204,2.44792344,200.87,200.82,10.98364412]
[1756592579400,7.53,200.86,200.82,9.23473213]
[1756592579803,7.53,200.86,200.83,4.17473213]
[1756592580405,2.44792344,200.87,200.83,4.17473213]
[1756592580607,7.53,200.86,200.83,9.23473213]
[1756592580804,2.44792344,200.87,200.83,9.23473213]
[1756592581006,7.53,200.86,200.83,9.23473213]
[1756592581505,2.44792344,200.87,200.83,9.23473213]
[1756592581706,7.53,200.86,200.83,9.23473213]
[1756592582205,7.53,200.86,200.83,5.06]
[1756592582406,7.53,200.86,200.83,9.23473213]
[1756592582808,2.44792344,200.87,200.83,9.23473213]
[1756592583500,7.53,200.86,200.84,5.06]
[1756592583907,2.44792344,200.87,200.84,5.06]
[1756592584106,7.53,200.89,200.84,5.06]
[1756592584408,7.53,200.89,200.86,5.06]
[1756592584907,132.79792344,200.92,200.86,9.23473213]
[1756592586107,7.53,200.92,200.87,4.17473213]
[1756592586303,464.91,200.93,200.87,4.17473213]
[1756592586907,464.91,200.93,200.88,5.06]
[1756592587311,464.91,200.93,200.87,4.17473213]
[1756592587514,342.09,200.93,200.87,4.17473213]
[1756592587812,464.91,200.93,200.88,4.17473213]
[1756592588505,464.91,200.93,200.89,5.05]
[1756592588703,9.80792344,200.92,200.88,4.17473213]
[1756592589010,7.36,200.88,200.82,4.17473213]
[1756592589210,7.36,200.86,200.82,4.17473213]
[1756592589402,122.8,200.87,200.82,4.17473213]
[1756592589605,7.36,200.86,200.82,4.17473213]
[1756592589805,122.8,200.87,200.82,4.17473213]
[1756592590207,7.36,200.86,200.82,4.17473213]
[1756592590608,122.8,200.87,200.82,4.17473213]
[1756592590805,7.36,200.86,200.82,4.17473213]
[1756592591209,7.36,200.85,200.82,4.17473213]
[1756592595910,9.80792344,200.86,200.83,5.05]
[1756592596715,132.60792344,200.86,200.83,5.05]
[1756592597009,9.80792344,200.86,200.83,5.05]
[1756592597215,132.60792344,200.86,200.83,5.05]
[1756592598215,7.36,200.85,200.82,4.17473213]
[1756592598410,7.36,200.85,200.82,9.22473213]
[1756592609422,7.36,200.85,200.83,4.17473213]
[1756592610226,2.44792344,200.86,200.83,4.17473213]
[1756592610627,7.36,200.85,200.82,4.17473213]
[1756592610820,7.36,200.82,200.81,4.17473213]
[1756592611019,7.36,200.82,200.81,5.92383022]
[1756592611430,8.93177125,200.82,200.81,5.92383022]
[1756592612322,8.93177125,200.82,200.81,1.74909809]
[1756592613430,7.36,200.82,200.81,1.74909809]
[1756592618434,7.36,200.82,200.79,5.52425557]
[1756592618735,7.36,200.82,200.8,6.81573057]
[1756592618927,7.36,200.82,200.81,1.75573057]
[1756592621333,7.61,200.89,200.81,6.81573057]
[1756592621538,2.45588783,200.86,200.83,4.17367118]
[1756592621733,7.61,200.85,200.83,4.17367118]
[1756592622440,2.45588783,200.86,200.82,4.17367118]
[1756592623838,7.61,200.85,200.82,4.17367118]
[1756592624040,2.45588783,200.86,200.82,4.17367118]
[1756592625434,7.61,200.85,200.82,4.17367118]
[1756592626135,2.45588783,200.86,200.82,4.17367118]
[1756592627335,7.61,200.85,200.82,4.17367118]
[1756592627541,2.45588783,200.86,200.81,4.17367118]
[1756592628245,7.61,200.85,200.81,4.17367118]
[1756592628645,2.45588783,200.86,200.81,9.23367118]
[1756592628846,7.61,200.85,200.81,9.23367118]
[1756592629049,2.45588783,200.86,200.81,9.23367118]
[1756592629548,7.61,200.85,200.81,9.23367118]
[1756592629853,2.45588783,200.86,200.81,9.23367118]
[1756592630051,7.61,200.85,200.81,9.23367118]
[1756592630447,2.45588783,200.86,200.81,9.23367118]
[1756592630647,7.61,200.85,200.81,9.23367118]
[1756592631041,2.45588783,200.86,200.81,9.23367118]
[1756592632054,7.61,200.85,200.81,9.23367118]
[1756592632252,2.45588783,200.86,200.81,9.23367118]
[1756592632551,7.61,200.85,200.81,9.23367118]
[1756592633046,2.45588783,200.86,200.81,9.23367118]
[1756592633243,2.45588783,200.86,200.82,4.17367118]
[1756592633645,7.61,200.85,200.82,4.17367118]
[1756592634145,2.45588783,200.86,200.82,4.17367118]
[1756592634344,7.61,200.85,200.82,4.17367118]
[1756592634654,2.45588783,200.86,200.82,4.17367118]
[1756592634854,7.61,200.85,200.82,4.17367118]
[1756592635454,1.57147742,200.83,200.82,4.17367118]
[1756592636253,1.57147742,200.83,200.82,9.23367118]
[1756592636954,7.61,200.86,200.83,5.06]
[1756592637254,1.57147742,200.84,200.83,9.23367118]
[1756592640358,7.61,200.87,200.83,9.23367118]
[1756592640558,1.57147742,200.85,200.84,9.23367118]
[1756592640761,1.57147742,200.85,200.84,10.99087178]
[1756592641056,1.57147742,200.85,200.84,6.8172006]
[1756592641855,1.57147742,200.89,200.85,5.06]
[1756592642056,1.57147742,200.89,200.87,9.23602401]
[1756592642255,1.57147742,200.89,200.88,5.06]
[1756592643764,342.27,200.95,200.89,5.06]
[1756592643960,9.18147742,200.94,200.9,5.06]
[1756592644858,9.18147742,200.94,200.91,5.06]
[1756592645260,7.61,200.94,200.91,5.06]
[1756592646360,7.61,200.94,200.9,4.17347256]
[1756592646560,7.61,200.94,200.91,5.06]
[1756592647664,334.66,200.95,200.9,5.05]
[1756592647859,342.21,200.95,200.9,4.17347256]
[1756592648066,342.21,200.95,200.91,5.05]
[1756592648363,342.21,200.95,200.9,9.22347256]
[1756592648665,342.21,200.95,200.91,5.05]
[1756592648862,342.21,200.95,200.9,4.17347256]
[1756592649056,7.55,200.95,200.9,4.17347256]
[1756592649365,7.55,200.95,200.91,5.05]
[1756592649864,7.55,200.95,200.9,4.17347256]
[1756592650264,7.55,200.95,200.89,4.17347256]
[1756592650760,7.55,200.98,200.92,5.05]
[1756592650964,7.55,200.98,200.93,5.05]
[1756592651457,122.62,201.0,200.93,4.17347256]
[1756592651665,122.62,201.0,200.94,5.05]
[1756592655566,122.62,201.0,200.94,7.50286046]
[1756592655758,122.62,201.0,200.94,2.45286046]
[1756592655958,122.62,201.0,200.95,5.05]
[1756592656462,122.62,201.0,200.94,2.45286046]
[1756592656666,7.55,201.03,200.95,5.05]
[1756592657963,7.55,201.03,200.97,2.45286046]
[1756592658468,7.55,201.03,200.98,5.05]
[1756592659365,7.55,201.03,200.97,2.45286046]
[1756592659666,7.55,201.03,200.98,5.05]
[1756592660167,7.55,201.03,200.97,2.45286046]
[1756592661162,7.55,201.03,200.98,5.05]
[1756592661467,7.55,201.03,200.97,2.45286046]
[1756592662363,7.55,201.04,200.95,5.05]
[1756592662668,7.55,201.04,200.95,7.50286046]
[1756592668067,7.55,201.04,200.96,5.05]
[1756592668267,7.55,201.04,200.99,5.05]
[1756592668469,7.55,201.04,200.98,7.50286046]
[1756592673264,7.55,201.04,200.99,1.56805019]
[1756592673462,7.55,201.02,200.97,1.56805019]
[1756592673867,1.56805019,201.03,200.97,1.56805019]
[1756592675370,7.55,201.02,200.94,7.50065634]
[1756592679175,7.55,201.02,200.94,11.6741289]
[1756592680577,122.58,201.05,200.94,11.6741289]
[1756592681169,8.06,201.04,200.95,4.17347256]
[1756592681573,8.06,201.04,200.94,7.50065634]
[1756592683472,8.06,201.04,200.94,11.64687471]
[1756592684773,122.58,201.05,200.94,6.59687471]
[1756592685077,8.06,201.04,200.95,9.19621837]
[1756592687185,8.06,201.04,200.96,4.14621837]
[1756592688783,8.06,201.04,200.97,5.89526397]
[1756592688979,8.06,201.04,200.97,4.14621837]
[1756592689178,8.06,201.04,200.98,4.14621837]
[1756592694189,8.06,201.04,200.99,4.14621837]
[1756592694386,8.06,201.04,200.98,4.14621837]
[1756592694689,8.06,201.04,200.96,5.52425557]
[1756592694690,8.06,201.04,200.99,4.14621837]
[1756592695290,1.56850566,201.02,200.99,4.14621837]
[1756592695490,8.06,201.01,200.99,4.14621837]
[1756592696282,1.56850566,201.02,200.99,4.14621837]
[1756592696683,8.06,201.01,200.99,4.14621837]
[1756592697882,8.06,201.01,201.0,1.75397131]
[1756592698086,8.06,201.01,201.0,5.90018968]
[1756592698791,8.06,201.01,200.99,4.14621837]
[1756592699293,8.06,201.01,201.0,4.14621837]
[1756592700797,8.06,201.01,200.99,4.14621837]
[1756592701397,1.56850566,201.02,200.99,4.14621837]
[1756592701596,8.06,201.01,200.99,4.14621837]
[1756592701799,8.06,201.01,200.99,9.19621837]
[1756592701993,8.06,201.01,201.0,5.90120218]
[1756592703303,1.56850566,201.07,201.0,8.37348947]
[1756592703599,8.06,201.06,201.02,9.21973058]
[1756592703805,1.56850566,201.07,201.02,9.21973058]
[1756592704103,1.56850566,201.07,201.03,4.62382185]
[1756592704303,1.56850566,201.07,201.04,4.62382185]
[1756592704602,8.06,201.06,201.05,4.62382185]
[1756592706301,8.06,201.08,201.05,9.67382185]
[1756592706497,8.06,201.08,201.06,4.62382185]
[1756592706704,8.06,201.08,201.07,4.62382185]
[1756592707804,9.62850566,201.08,201.07,4.62382185]
[1756592708005,10.12850566,201.08,201.01,4.16973058]
[1756592708202,1.56850566,201.05,201.01,4.16973058]
[1756592708500,7.37,201.04,201.01,4.16973058]
[1756592708906,1.56850566,201.05,201.01,4.16973058]
[1756592710010,7.37,201.04,201.01,4.16973058]
[1756592710206,1.56850566,201.05,201.01,4.16973058]
[1756592710908,7.37,201.04,201.01,4.16973058]
[1756592711108,1.56850566,201.05,201.01,4.16973058]
[1756592711306,7.37,201.04,201.0,4.16973058]
[1756592711507,1.56850566,201.05,200.99,4.16973058]
[1756592711807,7.37,201.04,201.0,11.84973058]
[1756592712205,1.56850566,201.05,201.0,11.84973058]
[1756592712604,7.37,201.04,201.0,11.84973058]
[1756592713016,1.56850566,201.05,201.0,11.84973058]
[1756592713314,1.56850566,201.05,201.01,7.68]
[1756592714009,7.37,201.04,201.01,11.84973058]
[1756592714208,7.37,201.04,201.02,7.68]
[1756592724014,1.56850566,201.05,201.02,7.68]
[1756592724214,7.37,201.04,201.02,7.68]
[1756592727417,7.37,201.04,201.01,4.16504239]
[1756592727613,7.37,201.04,201.02,7.68]
[1756592734818,22.08,201.1,200.99,4.16504239]
[1756592734819,7.37,201.02,200.99,4.16504239]
[1756592735018,1.56850566,201.01,200.99,4.16504239]
[1756592735218,7.37,201.0,200.99,4.16504239]
[1756592736021,1.56850566,201.01,200.99,4.16504239]
[1756592736220,8.93850566,201.01,200.99,11.84504239]
[1756592737022,7.37,201.01,200.99,11.84504239]
[1756592740719,7.74,201.07,201.0,8.05]
[1756592740916,1.56850566,201.06,201.02,4.16504239]
[1756592741115,1.56850566,201.06,201.03,8.05]
[1756592741116,7.74,201.05,201.03,8.05]
[1756592742821,1.56850566,201.04,201.01,4.16504239]
[1756592743025,1.56850566,201.04,200.98,8.05]
[1756592743026,9.30850566,201.02,201.0,4.16504239]
[1756592743821,9.30850566,201.02,200.99,12.21504239]
[1756592744825,7.74,201.02,200.99,12.21504239]
[1756592745220,7.74,201.02,200.99,4.16504239]
[1756592745425,7.74,201.02,201.0,8.05]
[1756592745630,9.30850566,201.04,201.01,8.05]
[1756592745823,7.74,201.04,201.01,8.05]
[1756592746521,7.74,201.1,201.02,4.16504239]
[1756592746723,9.30850566,201.08,201.02,4.16504239]
[1756592748623,7.74,201.08,201.02,5.73354805]
[1756592748824,7.74,201.08,201.04,8.05]
[1756592749121,1.56850566,201.1,201.05,8.05]
[1756592749429,1.56850566,201.1,201.04,5.73354805]
[1756592749629,1.56850566,201.1,201.05,8.05]
[1756592749924,1.56850566,201.1,201.04,5.73354805]
[1756592750127,1.56850566,201.1,201.05,8.05]
[1756592750321,33.84,201.11,201.05,8.05]
[1756592750522,35.40850566,201.11,201.05,8.05]
[1756592750925,33.84,201.11,201.05,8.05]
[1756592751131,35.40850566,201.11,201.05,8.05]
[1756592751330,33.84,201.11,201.05,8.05]
[1756592763634,33.84,201.11,201.05,4.16504239]
[1756592763838,33.84,201.11,201.06,8.05]
[1756592764339,26.1,201.11,201.05,4.16504239]
[1756592764733,33.84,201.11,201.06,8.05]
[1756592764939,26.1,201.11,201.05,4.16504239]
[1756592765134,33.84,201.11,201.06,8.05]
[1756592765433,26.1,201.11,201.05,4.16504239]
[1756592765630,26.1,201.11,201.06,8.05]
[1756592765828,26.1,201.11,201.05,4.16504239]
[1756592766231,26.1,201.11,201.06,8.05]
[1756592766438,26.1,201.11,201.05,4.16504239]
[1756592767431,33.43,201.11,201.06,7.44]
[1756592767737,26.1,201.11,201.05,4.16504239]
[1756592768435,33.43,201.11,201.06,7.44]
[1756592768642,26.1,201.11,201.05,4.16504239]
[1756592768841,33.43,201.11,201.06,7.44]
[1756592769143,26.1,201.11,201.05,4.16504239]
[1756592769336,7.33,201.1,201.05,11.60504239]
[1756592769840,26.1,201.11,201.05,4.16504239]
[1756592770039,7.33,201.1,201.05,4.16504239]
[1756592770338,7.33,201.08,201.02,4.16504239]
[1756592770644,7.33,201.07,201.0,11.60504239]
[1756592771446,1.56802361,201.06,201.0,13.173066]
[1756592771646,1.56802361,201.06,201.01,7.44]
[1756592772034,7.33,201.05,201.01,7.44]
[1756592772438,1.56802361,201.06,201.01,7.44]
[1756592772944,7.33,201.05,201.01,7.44]
[1756592773344,1.56802361,201.06,201.01,7.44]
[1756592773546,7.33,201.05,201.01,7.44]
[1756592773842,1.56802361,201.06,201.01,7.44]
[1756592774040,7.33,201.05,201.01,7.44]
[1756592774241,1.56802361,201.06,201.01,7.44]
[1756592775350,7.33,201.05,201.01,7.44]
[1756592775548,1.56802361,201.06,201.01,7.44]
[1756592776243,7.33,201.05,201.01,7.44]
[1756592776445,1.56802361,201.06,201.01,7.44]
[1756592777344,7.33,201.05,201.01,7.44]
[1756592777543,1.56802361,201.06,201.01,7.44]
[1756592778148,7.33,201.05,201.01,7.44]
[1756592778348,1.56802361,201.06,201.01,7.44]
[1756592778750,7.33,201.05,201.01,7.44]
[1756592779651,1.56802361,201.06,201.01,7.44]
[1756592780148,7.33,201.05,201.01,7.44]
[1756592780452,1.56802361,201.06,201.01,7.44]
[1756592780750,7.33,201.05,201.01,7.44]
[1756592780953,1.56802361,201.06,201.01,7.44]
[1756592781548,7.33,201.05,201.01,7.44]
[1756592781752,1.56802361,201.06,201.01,7.44]
[1756592782551,7.33,201.05,201.0,13.173066]
[1756592782748,1.56802361,201.06,201.0,5.733066]
[1756592782948,7.33,201.09,201.04,13.173066]
[1756592783144,8.89802361,201.08,201.03,4.16504239]
[1756592783350,7.33,201.07,201.04,7.44]
[1756592783744,7.33,201.07,201.02,4.16504239]
[1756592783950,7.33,201.07,201.02,11.60504239]